bitfinex/quotes_SOLUSD_20251103
["timestamp","ask_amount","ask_price","bid_price","bid_amount"]
[1762169589321,3.84057046,175.53,175.52,1.82987124]
[1762169590518,4.51057046,175.53,175.51,1.82987124]
[1762169590822,3.84057046,175.52,175.51,1.82987124]
[1762169592029,3.84057046,175.52,175.5,7.52780932]
[1762169592238,0.67,175.54,175.48,20.592]
[1762169592239,4.51140445,175.51,175.48,20.592]
[1762169592408,3.84201695,175.5,175.45,11.61869893]
[1762169592604,4.51201695,175.49,175.45,5.69954467]
[1762169592827,3.84201695,175.48,175.45,5.69954467]
[1762169593008,0.67,175.48,175.45,7.52941591]
[1762169593332,3.84213854,175.47,175.45,7.52941591]
[1762169593536,0.67,175.48,175.45,7.52941591]
[1762169593833,3.84093272,175.47,175.45,7.52941591]
[1762169594012,0.67,175.48,175.45,7.52941591]
[1762169594218,3.83993367,175.47,175.45,7.52941591]
[1762169594435,0.67,175.48,175.45,7.52941591]
[1762169594734,3.83988436,175.47,175.45,7.52941591]
[1762169594910,0.67,175.48,175.45,7.52941591]
[1762169595110,3.83988509,175.47,175.45,7.52941591]
[1762169595434,0.67,175.48,175.45,7.52941591]
[1762169595730,3.83894627,175.47,175.45,7.52941591]
[1762169596024,0.67,175.48,175.45,7.52941591]
[1762169596226,3.83818668,175.47,175.46,1.82987124]
[1762169596930,3.83818668,175.47,175.45,8.22941591]
[1762169597228,0.67,175.49,175.45,1.82987124]
[1762169597415,3.83727757,175.48,175.45,7.52937672]
[1762169597619,0.67,175.49,175.45,7.52937672]
[1762169597818,3.83727757,175.48,175.45,7.52937672]
[1762169598135,0.67,175.49,175.45,7.52937672]
[1762169598310,3.83669354,175.48,175.45,7.52937672]
[1762169598508,3.83667005,175.47,175.41,3.83818668]
[1762169598708,3.83667005,175.46,175.41,9.78882769]
[1762169598951,3.83667005,175.45,175.41,9.78882769]
[1762169599239,3.83567189,175.44,175.41,1.82987124]
[1762169599413,65.19612042,175.49,175.43,1.82987124]
[1762169599732,4.5052131,175.48,175.42,0.7]
[1762169599933,3.8352131,175.47,175.44,1.82987124]
[1762169600107,3.8352131,175.46,175.44,1.82987124]
[1762169600312,0.67,175.46,175.44,1.82987124]
[1762169600728,0.67,175.46,175.45,1.82987124]
[1762169600932,4.50384324,175.46,175.45,1.82987124]
[1762169601440,10.20315796,175.46,175.44,1.82987124]
[1762169601728,10.20315796,175.46,175.42,1.82987124]
[1762169601729,4.50384324,175.45,175.42,1.82987124]
[1762169601934,0.67,175.45,175.42,1.82987124]
[1762169602144,4.50143244,175.44,175.42,1.82987124]
[1762169602336,0.67,175.44,175.41,5.70092925]
[1762169602535,0.67,175.44,175.42,1.82987124]
[1762169606229,6.37005929,175.44,175.4,1.82987124]
[1762169606428,3.82784444,175.43,175.4,1.82987124]
[1762169606633,0.71,175.43,175.4,1.82987124]
[1762169606838,0.71,175.42,175.39,1.82987124]
[1762169607035,0.71,175.42,175.38,28.12373809]
[1762169607849,0.71,175.42,175.39,1.82987124]
[1762169608048,0.71,175.42,175.4,1.82987124]
[1762169609935,0.71,175.42,175.39,7.53132852]
[1762169611041,0.71,175.42,175.38,1.82987124]
[1762169611550,6.41062611,175.42,175.37,7.73206087]
[1762169612052,0.71,175.41,175.37,7.73206087]
[1762169612927,0.71,175.41,175.39,1.82987124]
[1762169613933,3.82463989,175.43,175.4,2.49987124]
[1762169614143,0.71,175.45,175.42,1.82987124]
[1762169614348,5.6995196,175.46,175.38,9.78882769]
[1762169614349,4.53063337,175.46,175.43,1.82987124]
[1762169614549,0.71,175.46,175.44,1.82987124]
[1762169615053,0.71,175.46,175.43,5.70025912]
[1762169615054,6.40941925,175.46,175.43,1.82987124]
[1762169615350,6.40941925,175.46,175.41,0.67]
[1762169615351,6.40941925,175.46,175.41,1.82987124]
[1762169615563,0.71,175.45,175.41,1.82987124]
[1762169615732,0.71,175.45,175.38,15.49050441]
[1762169615937,3.82063337,175.44,175.38,6.37167672]
[1762169616258,4.53063337,175.45,175.38,6.37167672]
[1762169616460,0.71,175.44,175.39,1.82987124]
[1762169616843,6.41024026,175.44,175.39,7.53138562]
[1762169617163,6.41024026,175.44,175.39,8.20138562]
[1762169617338,0.71,175.43,175.39,8.20138562]
[1762169617838,0.71,175.43,175.39,1.82987124]
[1762169618441,0.71,175.43,175.38,1.82987124]
[1762169618635,0.71,175.43,175.38,2.49987124]
[1762169618850,5.70060426,175.42,175.38,8.20167627]
[1762169619242,5.70060426,175.42,175.38,1.82987124]
[1762169619454,0.71,175.41,175.37,2.02987124]
[1762169619939,0.71,175.41,175.37,0.2]
[1762169620365,5.64894846,175.4,175.37,0.2]
[1762169620570,0.71,175.41,175.3,0.2]
[1762169620571,4.53177463,175.39,175.3,0.2]
[1762169620744,7.53210081,175.37,175.32,0.87]
[1762169621054,0.71277869,175.37,175.33,0.67]
[1762169621255,0.71269741,175.39,175.34,1.82987124]
[1762169621462,3.81827926,175.38,175.34,1.82987124]
[1762169621649,9.52021584,175.38,175.33,1.82987124]
[1762169621849,0.71,175.37,175.32,2.69987124]
[1762169622145,0.71,175.37,175.33,1.82987124]
[1762169622450,0.71,175.37,175.33,4.5161182]
[1762169622762,6.41225637,175.37,175.33,4.5161182]
[1762169623137,0.71,175.36,175.32,5.3861182]
[1762169623340,0.71,175.36,175.32,0.2]
[1762169623548,4.52827926,175.36,175.32,0.2]
[1762169623863,0.71,175.35,175.32,0.2]
[1762169624247,1.42285999,175.35,175.32,0.2]
[1762169624451,5.24113925,175.35,175.32,0.2]
[1762169624657,0.71,175.34,175.32,0.2]
[1762169625058,10.234027,175.35,175.32,0.2]
[1762169625272,10.23116701,175.35,175.32,0.2]
[1762169626137,0.71,175.34,175.32,0.2]
[1762169626952,7.14688222,175.35,175.32,0.2]
[1762169627762,1.44399447,175.35,175.32,0.2]
[1762169628062,5.70295681,175.35,175.32,0.2]
[1762169628742,12.35780203,175.35,175.32,0.2]
[1762169628943,0.7,175.34,175.32,0.2]
[1762169629339,7.5099481,175.33,175.32,0.2]
[1762169629541,22.14710288,175.33,175.32,0.2]
[1762169629761,28.8019481,175.33,175.32,0.2]
[1762169630945,34.50547858,175.33,175.32,0.2]
[1762169634759,34.50547858,175.33,175.32,0.2]
[1762169634955,27.85063336,175.33,175.32,0.2]
[1762169635265,34.50547858,175.33,175.32,0.2]
[1762169635659,39.30324003,175.33,175.32,0.2]
[1762169635860,64.63098926,175.32,175.3,0.2]
[1762169636061,0.85518421,175.31,175.3,0.2]
[1762169636369,0.71302264,175.31,175.3,0.2]
[1762169637171,6.4172038,175.31,175.3,0.2]
[1762169637547,13.07204902,175.31,175.3,0.2]
[1762169637753,18.51376741,175.31,175.3,0.2]
[1762169638059,13.75204902,175.31,175.3,0.2]
[1762169638462,13.07204902,175.31,175.3,0.2]
[1762169638690,6.4172038,175.31,175.3,0.2]
[1762169638861,10.22542616,175.31,175.3,0.2]
[1762169639868,10.90542616,175.31,175.3,0.2]
[1762169640071,10.22542616,175.31,175.3,0.2]
[1762169641875,15.66714455,175.31,175.3,0.2]
[1762169642169,27.49126064,175.31,175.3,0.2]
[1762169642362,27.49126064,175.31,175.24,3.2]
[1762169642363,20.592,175.28,175.24,3.2]
[1762169642564,4.52140773,175.27,175.24,3.2]
[1762169642761,3.80822236,175.26,175.24,3.2]
[1762169642964,3.80822236,175.25,175.24,3.89]
[1762169643158,9.51435645,175.25,175.24,3.89]
[1762169643359,9.51435645,175.25,175.24,3.2]
[1762169643769,3.80822236,175.25,175.24,3.2]
[1762169643955,9.51435645,175.25,175.24,3.2]
[1762169646478,10.22762321,175.25,175.24,3.2]
[1762169646676,10.90762321,175.25,175.24,3.2]
[1762169647177,10.22762321,175.25,175.24,3.2]
[1762169647777,18.53851634,175.25,175.24,3.2]
[1762169648170,10.22762321,175.25,175.24,3.2]
[1762169648766,3.80822236,175.25,175.24,12.46591091]
[1762169648971,4.76144193,175.32,175.24,26.73206019]
[1762169649172,10.46542293,175.32,175.29,2.8694512]
[1762169649476,4.76144193,175.31,175.29,2.8694512]
[1762169649862,4.76144193,175.32,175.3,3.5594512]
[1762169650062,4.76144193,175.32,175.31,2.8694512]
[1762169650262,4.76144193,175.32,175.3,2.8694512]
[1762169650476,4.76144193,175.32,175.31,2.8694512]
[1762169651062,10.46529773,175.32,175.31,2.8694512]
[1762169651257,4.76144193,175.32,175.3,2.8694512]
[1762169652058,4.76144193,175.32,175.31,2.8694512]
[1762169652460,14.01474893,175.32,175.27,2.8694512]
[1762169652692,2.8694512,175.28,175.24,3.2]
[1762169652859,2.8694512,175.25,175.24,3.2]
[1762169653185,14.05029398,175.25,175.24,3.2]
[1762169653386,14.73029398,175.25,175.24,3.2]
[1762169654176,10.46734501,175.26,175.24,3.89]
[1762169654576,10.46734501,175.26,175.24,3.2]
[1762169656204,4.76144193,175.26,175.24,3.2]
[1762169656367,4.76144193,175.28,175.25,7.34920525]
[1762169656560,4.76144193,175.3,175.27,6.65920525]
[1762169657074,5.44144193,175.3,175.26,6.65920525]
[1762169657289,5.44144193,175.3,175.24,3.2]
[1762169657290,6.15454592,175.29,175.24,3.2]
[1762169657493,5.70548296,175.27,175.24,3.2]
[1762169657999,10.46667715,175.28,175.25,0.69]
[1762169658203,5.70523522,175.28,175.25,0.69]
[1762169658384,5.70491762,175.29,175.25,7.34920525]
[1762169658579,5.70491762,175.29,175.26,6.65920525]
[1762169658784,5.70491762,175.29,175.26,7.34920525]
[1762169658979,11.14635955,175.29,175.25,6.65920525]
[1762169659301,4.76144193,175.28,175.25,7.34920525]
[1762169659477,5.70548296,175.27,175.25,7.34920525]
[1762169659677,5.70548296,175.27,175.25,0.69]
[1762169659899,5.70548296,175.27,175.25,7.34920525]
[1762169660090,4.76144193,175.29,175.26,6.65920525]
[1762169660296,4.76144193,175.29,175.26,7.34920525]
[1762169660893,3.81566754,175.28,175.26,6.65920525]
[1762169661092,10.46638641,175.29,175.27,0.69]
[1762169661294,8.57892157,175.28,175.27,0.69]
[1762169664202,8.60020981,175.28,175.26,6.65920525]
[1762169664406,3.81747964,175.27,175.26,6.65920525]
[1762169664997,3.81747964,175.27,175.25,6.65920525]
[1762169665311,3.81747964,175.27,175.24,8.90633657]
[1762169665312,3.81747964,175.26,175.24,3.2]
[1762169665605,3.81747964,175.25,175.24,9.85920525]
[1762169665809,3.81747964,175.25,175.24,15.56566496]
[1762169666196,3.81747964,175.25,175.24,16.24566496]
[1762169666597,4.78273017,175.33,175.28,30.38082769]
[1762169666799,25.37473017,175.37,175.32,6.65920525]
[1762169667105,25.37473017,175.37,175.33,6.65920525]
[1762169667305,26.06473017,175.37,175.33,6.65920525]
[1762169667510,20.592,175.37,175.33,6.65920525]
[1762169667814,11.17436495,175.39,175.36,6.65920525]
[1762169668204,11.17436495,175.39,175.35,6.65920525]
[1762169669108,6.39163478,175.39,175.35,6.65920525]
[1762169669304,6.39163478,175.39,175.34,6.65920525]
[1762169669305,0.69,175.38,175.34,6.65920525]
[1762169669803,0.69,175.38,175.33,6.65920525]
[1762169669987,11.17406913,175.4,175.35,6.65920525]
[1762169670187,6.39133896,175.4,175.35,6.65920525]
[1762169670383,0.69,175.39,175.35,6.65920525]
[1762169670595,5.70190443,175.38,175.34,6.65920525]
[1762169671211,6.39190443,175.38,175.34,6.65920525]
[1762169671388,0.69,175.37,175.28,30.38082769]
[1762169671585,7.34920525,175.37,175.29,0.67]
[1762169671804,0.71281934,175.36,175.31,6.65920525]
[1762169671985,1.40281934,175.36,175.31,6.65920525]
[1762169672387,0.69,175.35,175.31,6.65920525]
[1762169672910,6.39312302,175.35,175.31,6.65920525]
[1762169673108,6.39312302,175.35,175.32,6.65920525]
[1762169673500,0.69,175.38,175.34,6.65920525]
[1762169673709,0.69,175.38,175.35,6.65920525]
[1762169673710,20.592,175.37,175.35,6.65920525]
[1762169674088,0.69,175.38,175.35,6.65920525]
[1762169674494,5.70229517,175.37,175.35,6.65920525]
[1762169675411,5.70229517,175.37,175.34,6.65920525]
[1762169675609,6.39229517,175.37,175.33,6.65920525]
[1762169676404,6.39229517,175.37,175.31,6.37410929]
[1762169676405,0.69,175.36,175.34,6.65920525]
[1762169676715,6.39256379,175.36,175.33,6.65920525]
[1762169677102,6.39256379,175.36,175.34,6.65920525]
[1762169677492,6.39256379,175.36,175.33,6.65920525]
[1762169677691,0.69,175.35,175.31,6.65920525]
[1762169678091,0.69,175.35,175.32,6.65920525]
[1762169678291,0.69,175.35,175.29,5.70483199]
[1762169678492,3.82728646,175.34,175.3,2.86622489]
[1762169678899,0.69,175.33,175.3,2.86622489]
[1762169679094,4.51728646,175.33,175.28,2.86622489]
[1762169679295,4.51728646,175.33,175.27,5.70539335]
[1762169679296,3.82728646,175.32,175.29,2.86622489]
[1762169679495,0.69,175.33,175.29,2.86622489]
[1762169679705,5.7038558,175.32,175.29,2.86622489]
[1762169680109,6.3938558,175.32,175.29,2.86622489]
[1762169680807,0.69,175.31,175.28,2.86622489]
[1762169681395,0.69,175.32,175.29,2.86622489]
[1762169681920,0.69,175.31,175.29,2.86622489]
[1762169683105,58.52728646,175.33,175.3,2.86622489]
[1762169683106,55.39,175.33,175.3,2.86622489]
[1762169683430,61.09362711,175.33,175.31,2.86622489]
[1762169683607,61.09362711,175.33,175.3,2.86622489]
[1762169683810,61.09362711,175.33,175.29,2.86622489]
[1762169684127,4.51758062,175.32,175.26,15.4946362]
[1762169684303,4.51758062,175.32,175.28,2.86622489]
[1762169684702,0.69,175.31,175.28,2.86622489]
[1762169685323,0.69,175.31,175.29,2.86622489]
[1762169685622,3.82758062,175.32,175.29,2.86622489]
[1762169685826,54.7,175.33,175.3,2.86622489]
[1762169686001,54.7,175.33,175.31,2.86622489]
[1762169686320,60.40363554,175.33,175.3,2.86622489]
[1762169686523,0.69,175.32,175.27,5.70539761]
[1762169686731,4.51780834,175.32,175.28,2.86622489]
[1762169686920,5.70418116,175.31,175.28,2.86622489]
[1762169687114,6.39418116,175.31,175.28,2.86622489]
[1762169687501,0.69,175.3,175.25,5.70613127]
[1762169687822,0.69,175.3,175.24,11.77262341]
[1762169688013,0.65190452,175.3,175.24,11.77262341]
[1762169688209,4.48038101,175.3,175.26,2.86622489]
[1762169688724,3.82847649,175.3,175.26,2.86622489]
[1762169689432,5.70483199,175.29,175.26,2.86622489]
[1762169690106,5.70483199,175.29,175.24,3.2]
[1762169690432,6.39483199,175.29,175.26,1.83552642]
[1762169691798,0.69,175.29,175.26,1.83552642]
[1762169692228,0.69,175.29,175.27,1.83552642]
[1762169694714,6.39486328,175.29,175.27,1.83552642]
[1762169695625,0.69,175.29,175.27,1.83552642]
[1762169696224,9.53307505,175.3,175.27,1.83552642]
[1762169696428,0.69,175.29,175.27,1.83552642]
[1762169698207,0.69,175.29,175.26,5.70576369]
[1762169698413,0.69,175.29,175.28,1.83552642]
[1762169699110,4.52374225,175.29,175.28,1.83552642]
[1762169700036,10.22857424,175.29,175.27,1.83552642]
[1762169700529,4.52374225,175.29,175.28,1.83552642]
[1762169701030,10.22872284,175.29,175.27,1.83552642]
[1762169701212,6.39498059,175.29,175.27,1.83552642]
[1762169701412,5.70498059,175.29,175.27,1.83552642]
[1762169701613,6.41498059,175.29,175.27,1.83552642]
[1762169701812,61.11453693,175.3,175.28,1.83552642]
[1762169702032,4.54576348,175.29,175.28,1.83552642]
[1762169702724,4.54576348,175.29,175.27,1.83552642]
[1762169702922,60.40453693,175.3,175.27,1.83552642]
[1762169703119,4.5460482,175.29,175.27,1.83552642]
[1762169703431,0.71,175.29,175.27,1.83552642]
[1762169703809,6.41489899,175.29,175.27,1.83552642]
[1762169704115,3.83650453,175.28,175.25,1.83552642]
[1762169704321,3.83650453,175.27,175.24,5.03552642]
[1762169704521,3.83650453,175.26,175.24,5.03552642]
[1762169704733,3.83710526,175.25,175.24,5.03552642]
[1762169704924,3.83710526,175.26,175.25,0.7]
[1762169705110,3.83710526,175.28,175.25,2.53552642]
[1762169705310,6.41427436,175.31,175.27,1.83552642]
[1762169705620,3.83680063,175.3,175.27,5.70548296]
[1762169705820,3.83680063,175.29,175.27,6.40548296]
[1762169706020,0.71,175.33,175.28,0.7]
[1762169706242,3.83670416,175.32,175.29,9.78882769]
[1762169706536,3.83645473,175.35,175.33,9.78882769]
[1762169706708,3.83559803,175.38,175.34,9.1776321]
[1762169706910,0.71,175.41,175.37,1.83552642]
[1762169707111,0.71,175.41,175.4,1.83552642]
[1762169707423,4.5456273,175.41,175.4,1.83552642]
[1762169707732,3.8356273,175.41,175.4,8.23678069]
[1762169708833,3.8356273,175.41,175.4,1.83552642]
[1762169709051,4.5456273,175.41,175.4,1.83552642]
[1762169709221,4.5456273,175.41,175.39,1.83552642]
[1762169709430,3.8356273,175.4,175.38,1.83552642]
[1762169709620,3.8356273,175.39,175.37,1.83552642]
[1762169709815,3.8356273,175.38,175.37,1.83552642]
[1762169710417,3.8356273,175.4,175.37,1.83552642]
[1762169710720,3.8356273,175.39,175.38,1.83552642]
[1762169711341,3.8356273,175.39,175.37,1.83552642]
[1762169711837,3.8356273,175.4,175.37,1.83552642]
[1762169712036,3.8356273,175.39,175.37,1.83552642]
[1762169712425,3.8356273,175.39,175.35,5.70281815]
[1762169712738,3.8356273,175.39,175.37,1.83552642]
[1762169713633,3.8356273,175.4,175.37,1.83552642]
[1762169713813,3.8356273,175.39,175.37,1.83552642]
[1762169714013,4.5456273,175.39,175.37,1.83552642]
[1762169714237,0.71,175.39,175.37,1.83552642]
[1762169714537,3.8356273,175.39,175.37,1.83552642]
[1762169714920,4.5456273,175.39,175.37,1.83552642]
[1762169715229,0.71,175.38,175.36,1.83552642]
[1762169715421,0.71,175.38,175.35,1.83552642]
[1762169715626,0.71,175.38,175.34,1.83552642]
[1762169715817,4.5456273,175.38,175.33,1.83552642]
[1762169716030,0.71,175.37,175.33,1.83552642]
[1762169716431,0.71,175.37,175.33,7.5390022]
[1762169716629,0.71,175.37,175.34,1.83552642]
[1762169716834,3.8356273,175.39,175.36,1.83552642]
[1762169717118,3.8356273,175.41,175.38,1.83552642]
[1762169717318,3.8356273,175.41,175.4,1.83552642]
[1762169717534,0.71,175.41,175.37,1.83552642]
[1762169717746,0.71,175.4,175.36,1.83552642]
[1762169717932,3.2581832,175.4,175.34,1.83552642]
[1762169718137,5.70190443,175.38,175.33,7.53903791]
[1762169718334,5.70190443,175.38,175.33,1.83552642]
[1762169718523,4.5456273,175.37,175.33,1.83552642]
[1762169718734,3.8356273,175.36,175.32,1.83552642]
[1762169718930,4.5456273,175.36,175.32,1.83552642]
[1762169719138,3.8356273,175.37,175.31,1.83552642]
[1762169719339,0.71,175.35,175.29,7.54030798]
[1762169719538,3.82776986,175.34,175.29,7.54030798]
[1762169719826,3.82776986,175.33,175.29,7.54030798]
[1762169720031,0.71,175.34,175.3,1.83552642]
[1762169720238,3.82850074,175.33,175.3,1.83552642]
[1762169720542,0.71,175.34,175.3,4.5173532]
[1762169720760,3.82860581,175.33,175.3,4.5173532]
[1762169720964,0.71,175.34,175.3,4.5173532]
[1762169721137,3.82860581,175.33,175.3,4.5173532]
[1762169721326,6.41329261,175.34,175.3,4.5173532]
[1762169721527,3.82865982,175.33,175.3,4.5173532]
[1762169721727,3.82865982,175.32,175.3,4.5173532]
[1762169722138,0.71,175.35,175.3,4.5173532]
[1762169722451,9.53179986,175.34,175.29,4.5173532]
[1762169722751,3.82847879,175.33,175.28,4.5173532]
[1762169722951,3.82847879,175.32,175.28,4.5173532]
[1762169723130,3.82847879,175.33,175.28,4.5173532]
[1762169723331,3.82847879,175.32,175.28,4.5173532]
[1762169723528,6.41360232,175.33,175.29,5.70483199]
[1762169723744,3.82898276,175.32,175.28,5.70515286]
[1762169723940,3.82898276,175.31,175.28,5.70515286]
[1762169724136,0.71,175.31,175.27,6.40540628]
[1762169724454,6.41360232,175.33,175.27,6.40540628]
[1762169724643,3.82917356,175.32,175.27,6.40540628]
[1762169724940,3.82917356,175.31,175.27,6.40540628]
[1762169725137,6.41360232,175.33,175.27,10.92275948]
[1762169725341,4.53916315,175.32,175.27,10.92275948]
[1762169725544,3.82916315,175.31,175.27,10.92275948]
[1762169725748,0.71,175.32,175.27,10.92275948]
[1762169725934,3.82916638,175.31,175.28,5.2173532]
[1762169726135,0.72,175.32,175.28,4.5173532]
[1762169726457,23.55981288,175.35,175.27,6.39540628]
[1762169726458,3.82890773,175.31,175.29,5.2073532]
[1762169726660,4.47890773,175.34,175.29,5.2073532]
[1762169726835,3.82890773,175.33,175.29,5.2073532]
[1762169727035,5.70255474,175.36,175.3,5.70450656]
[1762169727249,0.65,175.33,175.3,5.70450656]
[1762169727449,0.65,175.35,175.3,5.70450656]
[1762169727749,4.47891858,175.34,175.3,5.70450656]
[1762169727953,3.82891752,175.33,175.3,5.70450656]
[1762169728265,0.65,175.34,175.3,5.70450656]
[1762169728466,3.82895223,175.33,175.3,5.70450656]
[1762169728776,0.65,175.34,175.3,5.70450656]
[1762169728953,3.82895179,175.33,175.31,0.69]
[1762169729136,3.82874605,175.32,175.3,10.22185976]
[1762169729336,3.82874605,175.33,175.3,10.91185976]
[1762169729544,0.65,175.34,175.3,10.91185976]
[1762169729852,3.82892303,175.33,175.3,10.22185976]
[1762169730033,0.65,175.34,175.29,10.22208792]
[1762169730235,3.8289266,175.33,175.29,10.22208792]
[1762169730436,3.8289266,175.32,175.29,10.91208792]
[1762169730630,3.8289266,175.33,175.3,5.2073532]
[1762169730844,3.8289266,175.36,175.32,4.5173532]
[1762169731044,3.8289266,175.35,175.32,4.5173532]
[1762169731276,3.8289266,175.34,175.32,4.5173532]
[1762169731474,0.65,175.37,175.32,4.5173532]
[1762169731652,3.82872913,175.36,175.32,4.5173532]
[1762169731969,4.47872913,175.35,175.3,4.5173532]
[1762169732159,3.82872913,175.34,175.29,10.22208792]
[1762169732448,3.82872913,175.33,175.29,6.39473472]
[1762169732663,3.82872913,175.32,175.29,6.39473472]
[1762169732872,10.18228296,175.33,175.28,10.2224174]
[1762169733066,3.82872913,175.32,175.28,5.7050642]
[1762169733255,6.35355383,175.33,175.28,6.3950642]
[1762169733566,3.82955402,175.32,175.28,6.3950642]
[1762169733770,6.35355383,175.33,175.28,6.3950642]
[1762169734065,3.82955474,175.32,175.29,0.69]
[1762169734262,0.65,175.35,175.29,5.2073532]
[1762169734463,3.82970805,175.34,175.31,4.5173532]
[1762169734663,3.82970805,175.33,175.31,4.5173532]
[1762169734864,6.35290457,175.35,175.31,4.5173532]
[1762169735048,3.82952728,175.34,175.31,4.5173532]
[1762169735242,3.82952728,175.33,175.31,4.5173532]
[1762169735447,0.65,175.34,175.3,10.22185976]
[1762169735662,3.82982167,175.33,175.3,10.91185976]
[1762169735862,0.65,175.34,175.3,10.91185976]
[1762169736062,3.82982167,175.33,175.3,10.91185976]
[1762169736278,0.65,175.34,175.3,10.91185976]
[1762169736479,3.83013816,175.33,175.3,10.91185976]
[1762169736662,0.65,175.34,175.3,10.91185976]
[1762169736847,3.83013995,175.33,175.3,10.91185976]
[1762169737052,0.65,175.34,175.3,10.91185976]
[1762169737360,60.1361469,175.39,175.32,4.5173532]
[1762169737562,3.8301564,175.38,175.34,4.5173532]
[1762169737759,3.8301564,175.37,175.34,4.5173532]
[1762169737961,3.8301564,175.36,175.34,4.5173532]
[1762169738174,3.8301564,175.35,175.34,4.5173532]
[1762169738556,3.8301564,175.35,175.32,10.91111481]
[1762169738761,0.65,175.37,175.32,10.91111481]
[1762169738950,3.83029485,175.36,175.32,6.39376161]
[1762169739151,3.83029485,175.35,175.32,10.91111481]
[1762169739346,3.83067689,175.34,175.32,10.91111481]
[1762169739553,3.83081076,175.33,175.26,0.69]
[1762169739857,25.1093532,175.35,175.26,5.2073532]
[1762169739858,3.83086555,175.32,175.26,5.2073532]
[1762169740162,3.83086555,175.31,175.26,10.22306742]
[1762169740480,9.53540102,175.3,175.26,5.70571422]
[1762169740664,5.70453547,175.3,175.26,5.70571422]
[1762169740866,4.48211838,175.29,175.25,1.83556203]
[1762169741180,5.70453547,175.3,175.26,0.69]
[1762169741371,3.83219915,175.29,175.26,2.52556203]
[1762169741673,6.35453547,175.3,175.26,1.83556203]
[1762169741862,3.83224356,175.29,175.26,1.83556203]
[1762169742059,6.35453547,175.3,175.26,1.83556203]
[1762169742369,6.35453547,175.3,175.24,3.89]
[1762169742370,10.18726783,175.29,175.24,3.2]
[1762169742662,3.83241343,175.28,175.24,3.2]
[1762169742875,3.83241343,175.27,175.24,10.74196095]
[1762169743077,3.83241343,175.26,175.24,10.74196095]
[1762169743281,0.69,175.27,175.24,8.90639892]
[1762169743483,3.83254487,175.26,175.24,3.2]
[1762169743656,0.69,175.27,175.24,3.2]
[1762169743857,3.83254487,175.26,175.24,3.2]
[1762169744163,0.69,175.27,175.24,8.90645195]
[1762169744571,3.83204797,175.26,175.24,8.90645195]
[1762169744778,0.69,175.27,175.24,8.90645195]
[1762169744954,3.83204797,175.26,175.24,8.90645195]
[1762169745273,0.69,175.27,175.24,10.74201398]
[1762169745590,3.83148283,175.26,175.24,10.74201398]
[1762169745756,0.69,175.27,175.24,8.90645195]
[1762169745960,3.83148283,175.26,175.24,8.90645195]
[1762169746153,0.69,175.27,175.24,8.90645195]
[1762169746359,3.83148283,175.26,175.24,8.90645195]
[1762169746553,0.69,175.27,175.24,8.90645195]
[1762169746754,3.83109863,175.26,175.24,8.90645195]
[1762169746953,6.395487,175.27,175.24,3.2]
[1762169747172,3.83109791,175.26,175.24,3.2]
[1762169747376,0.69,175.26,175.24,3.2]
[1762169747754,5.705487,175.27,175.24,3.2]
[1762169748078,3.8307167,175.26,175.24,3.2]
[1762169748371,3.83034113,175.26,175.24,3.2]
[1762169748564,4.52034113,175.26,175.24,3.2]
[1762169749279,0.69,175.26,175.24,3.2]
[1762169750275,4.52025542,175.26,175.24,3.2]
[1762169751314,0.69,175.25,175.24,3.2]
[1762169751582,4.51965656,175.25,175.24,3.2]
[1762169752169,3.82965656,175.25,175.24,3.2]
[1762169752365,4.51965656,175.25,175.24,3.2]
[1762169753476,10.22579065,175.25,175.24,3.2]
[1762169756865,13.80793611,175.25,175.24,3.2]
[1762169757760,4.51965656,175.25,175.24,3.2]
[1762169758176,10.22579065,175.25,175.24,3.2]
[1762169758583,10.22579065,175.25,175.24,3.16173854]
[1762169760784,10.93905741,175.25,175.24,3.16173854]
[1762169761005,13.80793611,175.25,175.24,3.16173854]
[1762169761174,13.95009768,175.25,175.24,3.16173854]
[1762169761765,23.73892537,175.25,175.24,1e-08]
[1762169762495,31.67321898,175.25,175.24,1e-08]
[1762169762692,34.54209768,175.25,175.24,1e-08]
[1762169762875,11.08121898,175.25,175.24,1e-08]
[1762169763077,34.54209768,175.25,175.24,1e-08]
[1762169764698,23.73892537,175.25,175.24,1e-08]
[1762169766083,20.592,175.21,175.18,0.2]
[1762169766286,8.57696706,175.19,175.18,0.2]